fUST/lending_fUST_20250603
["ID","MTS","AMOUNT","RATE_DAILY","PERIOD"]
[363923966,1748928649605,-500.0,0.00019677,2]
[363923967,1748928649616,-151.0,0.00019726,2]
[363923968,1748928649625,-151.0,0.00019726,2]
[363923969,1748928649635,-151.0,0.00019726,2]
[363923970,1748928649645,-165.245376,0.00019726,2]
[363923971,1748928649655,-151.0,0.00019726,2]
[363923972,1748928649664,-151.0,0.00019726,2]
[363923973,1748928649674,-151.0,0.00019726,2]
[363923974,1748928649683,-440.0,0.00019726,2]
[363923975,1748928649693,-151.0,0.00019726,2]
[363923976,1748928649703,-440.0,0.00019726,2]
[363923977,1748928649713,-440.0,0.00019726,2]
[363923978,1748928649722,-206.375957,0.00019726,2]
[363923979,1748928649733,-151.0,0.00019726,2]
[363923980,1748928649742,-206.375957,0.00019726,2]
[363923981,1748928649752,-151.0,0.00019726,2]
[363923982,1748928649762,-191.822885,0.00019726,2]
[363923983,1748928649772,-191.822885,0.00019726,2]
[363923984,1748928649782,-492.907463,0.00019726,2]
[363923985,1748928649792,-492.907463,0.00019726,2]
[363923986,1748928649802,-440.0,0.00019726,2]
[363923987,1748928649812,-824.28,0.00019726,2]
[363923988,1748928649821,-1694.32,0.00019726,2]
[363923989,1748928649831,-724.76,0.00019726,2]
[363923990,1748928649843,-1268.39,0.00019726,2]
[363923991,1748928649853,-440.0,0.00019726,2]
[363923992,1748928649863,-440.0,0.00019726,2]
[363923993,1748928649872,-815.79,0.00019726,2]
[363923994,1748928649882,-1643.27,0.00019726,2]
[363923995,1748928649892,-875.69,0.00019726,2]
[363923996,1748928649901,-1306.22,0.00019726,2]
[363923997,1748928649911,-440.0,0.00019726,2]
[363923998,1748928649920,-2143.82,0.00019726,2]
[363923999,1748928649930,-713.13,0.00019726,2]
[363924000,1748928649939,-440.0,0.00019726,2]
[363924001,1748928649951,-422.728868,0.00019726,2]
[363924002,1748928649960,-422.728868,0.00019726,2]
[363924003,1748928649970,-595.98,0.00019726,2]
[363924004,1748928649979,-196.036022,0.00019726,2]
[363924005,1748928649989,-440.0,0.00019726,2]
[363924006,1748928649999,-196.036022,0.00019726,2]
[363924007,1748928650008,-608.44,0.00019726,2]
[363924008,1748928650018,-597.95,0.00019726,2]
[363924009,1748928650028,-812.173458,0.00019726,2]
[363924010,1748928650037,-768.43,0.00019726,2]
[363924011,1748928650048,-812.173458,0.00019726,2]
[363924012,1748928650057,-440.0,0.00019726,2]
[363924013,1748928650067,-467.5,0.00019726,2]
[363924014,1748928650077,-518.773902,0.00019726,2]
[363924015,1748928650089,-518.773902,0.00019726,2]
[363924016,1748928650101,-440.0,0.00019726,2]
[363924017,1748928650110,-399.43975208,0.0001978,2]
[363924018,1748928650123,-103.2503341,0.0001978,2]
[363924019,1748928650133,-1027.52413112,0.00019797,2]
[363924020,1748928650323,-900.39,0.00016438,2]
[363924021,1748928650334,-420.0,0.00016438,2]
[363924022,1748928650344,-900.39,0.00016712,2]
[363924023,1748928650354,-900.39,0.00016986,2]
[363924024,1748928650364,-151.0,0.00017259,2]
[363924025,1748928650374,-151.0,0.00017259,2]
[363924026,1748928650384,-900.39,0.0001726,2]
[363924027,1748928650395,-900.39,0.00017534,2]
[363924028,1748928650406,-289.659743,0.00017534,2]
[363924029,1748928650415,-151.0,0.00017534,2]
[363924030,1748928650426,-900.39,0.00017808,2]
[363924031,1748928650436,-151.0,0.00017808,2]
[363924032,1748928650446,-900.39,0.00018082,2]
[363924033,1748928650458,-900.39,0.00018356,2]
[363924034,1748928650469,-254.20294484,0.0001863,2]
[363924035,1748928650482,-421.83972121,0.0001863,2]
[363924036,1748928650791,-151.0,0.00018082,2]
[363924037,1748928650802,-224.34733395,0.0001863,2]
[363924038,1748928650812,-151.0,0.0001863,2]
[363924039,1748928650821,-35.03686199,0.00018904,2]
[363924040,1748928650835,-865.35313801,0.00018904,2]
[363924041,1748928650844,-207.509373,0.00019078,2]
[363924042,1748928650855,-900.39,0.00019178,2]
[363924043,1748928650866,-366.64750878,0.00019452,2]
[363924054,1748929047584,175.007722,0.00013699,2]
[363924058,1748929197571,213.99632772,0.00013699,2]
[363924126,1748929747385,512.0,0.00017,120]
[363924130,1748929764147,341.0,0.00017,120]
[363924187,1748929832324,-300.0,0.00016436,2]
[363924188,1748929832336,-1200.0,0.00016436,2]
[363924190,1748929832348,-300.0,0.00016437,2]
[363924192,1748929832359,-396.70939809,0.00016437,2]
[363924193,1748929832370,-500.0,0.00016437,2]
[363924194,1748929832381,-546.43518775,0.00016437,2]
[363924195,1748929832393,-500.0,0.00016437,2]
[363924196,1748929832406,-500.0,0.00016437,2]
[363924197,1748929832429,-500.0,0.00016437,2]
[363924198,1748929832452,-500.0,0.00016437,2]
[363924199,1748929832477,-509.38914953,0.00016437,2]
[363924200,1748929832501,-66.17667931,0.00016437,2]
[363924228,1748929838411,-433.82332069,0.00016437,2]
[363924229,1748929838432,-217.10104391,0.00016437,2]
[363924230,1748929838442,-430.0,0.00016438,2]
[363924231,1748929838453,-190.0,0.00016438,2]
[363924232,1748929838462,-440.0,0.00016438,2]
[363924233,1748929838472,-457.31297145,0.00016438,2]
[363924234,1748929838482,-323.69648315,0.00016438,2]
[363924235,1748929838492,-410.0,0.00016438,2]
[363924236,1748929838502,-440.0,0.00016438,2]
[363924237,1748929838512,-415.80648763,0.00016438,2]
[363924238,1748929838522,-440.0,0.00016438,2]
[363924239,1748929838532,-440.0,0.00016438,2]
[363924240,1748929838542,-408.93727323,0.00016438,2]
[363924241,1748929838553,-440.0,0.00016438,2]
[363924242,1748929838564,-410.0,0.00016438,2]
[363924243,1748929838574,-410.0,0.00016438,2]
[363924244,1748929838584,-440.0,0.00016438,2]
[363924245,1748929838593,-440.0,0.00016438,2]
[363924246,1748929838603,-440.0,0.00016438,2]
[363924247,1748929838613,-424.73155644,0.00016438,2]
[363924248,1748929838623,-440.0,0.00016438,2]
[363924249,1748929838633,-440.0,0.00016438,2]
[363924250,1748929838642,-189.44253786,0.00016438,2]
[363924251,1748929838652,-440.0,0.00016438,2]
[363924252,1748929838662,-440.0,0.00016438,2]
[363924253,1748929838672,-419.02,0.00016438,2]
[363924254,1748929838681,-418.89982421,0.00016438,2]
[363924255,1748929838691,-440.0,0.00016438,2]
[363924256,1748929838700,-440.0,0.00016438,2]
[363924257,1748929838710,-524.86879558,0.00016438,2]
[363924258,1748929838720,-440.0,0.00016438,2]
[363924259,1748929838730,-450.0,0.00016438,2]
[363924260,1748929838740,-410.0,0.00016438,2]
[363924261,1748929838751,-440.85964723,0.00016438,2]
[363924262,1748929838761,-464.05988203,0.00016438,2]
[363924263,1748929838770,-440.0,0.00016438,2]
[363924264,1748929838780,-434.87178783,0.00016438,2]
[363924265,1748929838790,-440.0,0.00016438,2]
[363924266,1748929838800,-440.0,0.00016438,2]
[363924267,1748929838810,-1693.52,0.00016438,2]
[363924268,1748929838820,-913.23,0.00016438,2]
[363924269,1748929838829,-440.0,0.00016438,2]
[363924270,1748929838839,-440.0,0.00016438,2]
[363924271,1748929838849,-440.0,0.00016438,2]
[363924272,1748929838859,-440.0,0.00016438,2]
[363924273,1748929838870,-440.0,0.00016438,2]
[363924274,1748929838881,-440.0,0.00016438,2]
[363924275,1748929838891,-440.0,0.00016438,2]
[363924276,1748929838900,-452.83129913,0.00016438,2]
[363924277,1748929838910,-550.0,0.00016438,2]
[363924278,1748929838919,-564.19,0.00016438,2]
[363924279,1748929838929,-440.0,0.00016438,2]
[363924280,1748929838938,-440.0,0.00016438,2]
[363924281,1748929838948,-440.0,0.00016438,2]
[363924282,1748929838958,-440.0,0.00016438,2]
[363924283,1748929838968,-1083.5,0.00016438,2]
[363924284,1748929838977,-440.0,0.00016438,2]
[363924285,1748929838991,-440.0,0.00016438,2]
[363924286,1748929839002,-440.0,0.00016438,2]
[363924287,1748929839011,-2083.82,0.00016438,2]
[363924288,1748929839021,-2014.14,0.00016438,2]
[363924289,1748929839031,-1581.67,0.00016438,2]
[363924290,1748929839041,-440.0,0.00016438,2]
[363924291,1748929839051,-2327.35,0.00016438,2]
[363924292,1748929839062,-472.07,0.00016438,2]
[363924293,1748929839072,-457.75,0.00016438,2]
[363924294,1748929839082,-993.97,0.00016438,2]
[363924295,1748929839092,-440.0,0.00016438,2]
[363924296,1748929839102,-440.0,0.00016438,2]
[363924297,1748929839112,-440.0,0.00016438,2]
[363924298,1748929839123,-890.91,0.00016438,2]
[363924299,1748929839133,-440.0,0.00016438,2]
[363924300,1748929839143,-440.0,0.00016438,2]
[363924301,1748929839154,-440.0,0.00016438,2]
[363924302,1748929839164,-440.0,0.00016438,2]
[363924303,1748929839174,-410.0,0.00016438,2]
[363924304,1748929839184,-410.0,0.00016438,2]
[363924305,1748929839194,-440.0,0.00016438,2]
[363924306,1748929839203,-975.27,0.00016438,2]
[363924307,1748929839213,-440.0,0.00016438,2]
[363924308,1748929839223,-440.0,0.00016438,2]
[363924309,1748929839233,-769.56,0.00016438,2]
[363924310,1748929839242,-430.14959396,0.00016438,2]
[363924311,1748929839253,-753.04,0.00016438,2]
[363924312,1748929839263,-667.86,0.00016438,2]
[363924313,1748929839272,-440.0,0.00016438,2]
[363924314,1748929839282,-440.0,0.00016438,2]
[363924315,1748929839292,-440.0,0.00016438,2]
[363924316,1748929839302,-440.0,0.00016438,2]
[363924317,1748929839312,-440.0,0.00016438,2]
[363924318,1748929839321,-440.0,0.00016438,2]
[363924319,1748929839331,-440.0,0.00016438,2]
[363924320,1748929839341,-500.0,0.00016657,2]
[363924321,1748929839351,-500.0,0.00016684,2]
[363924322,1748929839361,-1083.5,0.00016711,2]
[363924323,1748929839372,-500.0,0.00016712,2]
[363924324,1748929839382,-440.0,0.00016712,2]
[363924325,1748929839392,-231.35002777,0.00016712,2]
[363924326,1748929839402,-281.89756893,0.00016712,2]
[363924327,1748929839411,-440.0,0.00016712,2]
[363924328,1748929839421,-400.0,0.00016712,2]
[363924329,1748929839431,-440.0,0.00016712,2]
[363924330,1748929839440,-440.0,0.00016712,2]
[363924331,1748929839451,-440.0,0.00016712,2]
[363924332,1748929839461,-440.0,0.00016712,2]
[363924333,1748929839471,-440.0,0.00016712,2]
[363924334,1748929839481,-440.0,0.00016712,2]
[363924335,1748929839491,-440.0,0.00016712,2]
[363924336,1748929839501,-400.0,0.00016712,2]
[363924337,1748929839510,-440.0,0.00016712,2]
[363924338,1748929839520,-440.0,0.00016712,2]
[363924339,1748929839529,-400.0,0.00016712,2]
[363924340,1748929839539,-440.0,0.00016712,2]
[363924341,1748929839549,-1693.52,0.00016712,2]
[363924342,1748929839559,-913.23,0.00016712,2]
[363924344,1748929839568,-440.0,0.00016712,2]
[363924345,1748929839579,-440.0,0.00016712,2]
[363924346,1748929839588,-440.0,0.00016712,2]
[363924347,1748929839598,-400.0,0.00016712,2]
[363924348,1748929839607,-400.0,0.00016712,2]
[363924349,1748929839617,-440.0,0.00016712,2]
[363924350,1748929839626,-381.01,0.00016712,2]
[363924351,1748929839635,-564.19,0.00016712,2]
[363924352,1748929839645,-440.0,0.00016712,2]
[363924353,1748929839654,-440.0,0.00016712,2]
[363924354,1748929839664,-419.46620062,0.00016712,2]
[363924355,1748929839673,-440.0,0.00016712,2]
[363924356,1748929839683,-440.0,0.00016712,2]
[363924357,1748929839692,-2083.82,0.00016712,2]
[363924358,1748929839703,-2014.14,0.00016712,2]
[363924359,1748929839712,-1581.67,0.00016712,2]
[363924360,1748929839722,-440.0,0.00016712,2]
[363924361,1748929839732,-2327.35,0.00016712,2]
[363924362,1748929839742,-472.07,0.00016712,2]
[363924363,1748929839751,-457.75,0.00016712,2]
[363924364,1748929839761,-993.97,0.00016712,2]
[363924365,1748929839770,-440.0,0.00016712,2]
[363924366,1748929839780,-440.0,0.00016712,2]
[363924367,1748929839790,-890.91,0.00016712,2]
[363924368,1748929839799,-440.0,0.00016712,2]
[363924369,1748929839809,-440.0,0.00016712,2]
[363924370,1748929839818,-440.0,0.00016712,2]
[363924371,1748929839828,-384.26767852,0.00016712,2]
[363924372,1748929839838,-400.0,0.00016712,2]
[363924374,1748929839848,-975.27,0.00016712,2]
[363924376,1748929839858,-440.0,0.00016712,2]
[363924378,1748929839868,-440.0,0.00016712,2]
[363924380,1748929839877,-769.56,0.00016712,2]
[363924382,1748929839887,-753.04,0.00016712,2]
[363924384,1748929839896,-667.86,0.00016712,2]
[363924386,1748929839906,-301.54630807,0.00016712,2]
[363924388,1748929839916,-451.32547535,0.00016712,2]
[363924390,1748929839926,-410.0,0.00016712,2]
[363924392,1748929839936,-440.0,0.00016712,2]
[363924394,1748929839945,-440.0,0.00016712,2]
[363924396,1748929839955,-440.0,0.00016712,2]
[363924398,1748929839965,-440.0,0.00016712,2]
[363924401,1748929839976,-500.0,0.00016739,2]
[363924403,1748929839989,-500.0,0.00016767,2]
[363924406,1748929839999,-500.0,0.00016794,2]
[363924408,1748929840009,-277.75440353,0.00016821,2]
[363924410,1748929840018,-2393.83804981,0.000169,2]
[363924412,1748929840029,-1083.5,0.00016985,2]
[363924414,1748929840039,-442.95650153,0.00016986,2]
[363924416,1748929840048,-390.0,0.00016986,2]
[363924418,1748929840059,-440.0,0.00016986,2]
[363924420,1748929840068,-440.0,0.00016986,2]
[363924422,1748929840078,-440.0,0.00016986,2]
[363924424,1748929840088,-390.0,0.00016986,2]
[363924426,1748929840098,-440.0,0.00016986,2]
[363924429,1748929840107,-440.0,0.00016986,2]
[363924431,1748929840118,-440.0,0.00016986,2]
[363924433,1748929840128,-243.9613173,0.00016986,2]
[363924435,1748929840138,-454.95509405,0.00016986,2]
[363924438,1748929840147,-1693.52,0.00016986,2]
[363924440,1748929840158,-913.23,0.00016986,2]
[363924443,1748929840168,-187.81,0.00016986,2]
[363924445,1748929840178,-390.0,0.00016986,2]
[363924447,1748929840188,-440.0,0.00016986,2]
[363924449,1748929840198,-400.0,0.00016986,2]
[363924451,1748929840208,-564.19,0.00016986,2]
[363924453,1748929840218,-440.0,0.00016986,2]
[363924456,1748929840229,-440.0,0.00016986,2]
[363924459,1748929840240,-440.0,0.00016986,2]
[363924462,1748929840250,-440.0,0.00016986,2]
[363924463,1748929840259,-2083.82,0.00016986,2]
[363924465,1748929840269,-2014.14,0.00016986,2]
[363924467,1748929840280,-1581.67,0.00016986,2]
[363924469,1748929840291,-440.0,0.00016986,2]
[363924472,1748929840301,-2327.35,0.00016986,2]
[363924474,1748929840310,-472.07,0.00016986,2]
[363924476,1748929840321,-457.75,0.00016986,2]
[363924478,1748929840331,-993.97,0.00016986,2]
[363924480,1748929840340,-440.0,0.00016986,2]
[363924482,1748929840350,-337.12464886,0.00016986,2]
[363924483,1748929840360,-890.91,0.00016986,2]
[363924484,1748929840370,-440.0,0.00016986,2]
[363924485,1748929840380,-440.0,0.00016986,2]
[363924486,1748929840389,-440.0,0.00016986,2]
[363924488,1748929840399,-975.27,0.00016986,2]
[363924491,1748929840409,-440.0,0.00016986,2]
[363924493,1748929840419,-390.0,0.00016986,2]
[363924495,1748929840429,-769.56,0.00016986,2]
[363924497,1748929840438,-753.04,0.00016986,2]
[363924499,1748929840448,-667.86,0.00016986,2]
[363924501,1748929840458,-440.0,0.00016986,2]
[363924503,1748929840467,-440.0,0.00016986,2]
[363924505,1748929840477,-440.0,0.00016986,2]
[363924507,1748929840487,-500.0,0.00017,3]
[363924509,1748929840497,-2393.8380497,0.00017141,2]
[363924511,1748929840506,-500.0,0.000172,3]
[363924513,1748929840516,-1083.5,0.00017259,2]
[363924515,1748929840525,-151.0,0.0001726,2]
[363924517,1748929840535,-151.0,0.0001726,2]
[363924520,1748929840544,-151.0,0.0001726,2]
[363924522,1748929840553,-151.0,0.0001726,2]
[363924524,1748929840563,-151.0,0.0001726,2]
[363924526,1748929840573,-401.324536,0.0001726,2]
[363924528,1748929840583,-401.324536,0.0001726,2]
[363924530,1748929840592,-379.816853,0.0001726,2]
[363924532,1748929840602,-379.816853,0.0001726,2]
[363924534,1748929840611,-440.0,0.0001726,2]
[363924535,1748929840622,-440.0,0.0001726,2]
[363924536,1748929840632,-440.0,0.0001726,2]
[363924537,1748929840641,-440.0,0.0001726,2]
[363924538,1748929840651,-440.0,0.0001726,2]
[363924539,1748929840661,-440.0,0.0001726,2]
[363924540,1748929840670,-1693.52,0.0001726,2]
[363924541,1748929840680,-913.23,0.0001726,2]
[363924542,1748929840690,-440.0,0.0001726,2]
[363924543,1748929840699,-564.19,0.0001726,2]
[363924544,1748929840709,-440.0,0.0001726,2]
[363924545,1748929840719,-440.0,0.0001726,2]
[363924546,1748929840728,-440.0,0.0001726,2]
[363924547,1748929840737,-440.0,0.0001726,2]
[363924548,1748929840747,-2083.82,0.0001726,2]
[363924549,1748929840756,-2014.14,0.0001726,2]
[363924550,1748929840765,-1581.67,0.0001726,2]
[363924551,1748929840775,-440.0,0.0001726,2]
[363924552,1748929840785,-2327.35,0.0001726,2]
[363924553,1748929840795,-472.07,0.0001726,2]
[363924554,1748929840804,-457.75,0.0001726,2]
[363924555,1748929840814,-993.97,0.0001726,2]
[363924556,1748929840824,-440.0,0.0001726,2]
[363924557,1748929840833,-890.91,0.0001726,2]
[363924558,1748929840842,-440.0,0.0001726,2]
[363924559,1748929840852,-440.0,0.0001726,2]
[363924560,1748929840862,-440.0,0.0001726,2]
[363924561,1748929840871,-975.27,0.0001726,2]
[363924562,1748929840882,-440.0,0.0001726,2]
[363924563,1748929840891,-769.56,0.0001726,2]
[363924564,1748929840901,-753.04,0.0001726,2]
[363924565,1748929840912,-667.86,0.0001726,2]
[363924566,1748929840921,-440.0,0.0001726,2]
[363924567,1748929840931,-440.0,0.0001726,2]
[363924568,1748929840940,-440.0,0.0001726,2]
[363924569,1748929840950,-500.0,0.00017312,2]
[363924570,1748929840959,-2393.8380497,0.00017383,2]
[363924571,1748929840969,-500.0,0.000174,3]
[363924572,1748929840981,-500.0,0.00017416,2]
[363924573,1748929840993,-500.0,0.00017416,2]
[363924574,1748929841003,-500.0,0.00017416,2]
[363924575,1748929841013,-500.22395642,0.00017469,2]
[363924576,1748929841023,-501.86867376,0.00017469,2]
[363924577,1748929841033,-500.0,0.00017495,2]
[363924578,1748929841043,-500.0,0.00017495,2]
[363924579,1748929841052,-500.0,0.000175,3]
[363924580,1748929841064,-655.64,0.00017524,3]
[363924581,1748929841073,-327.82,0.00017524,3]
[363924582,1748929841082,-163.91,0.00017524,3]
[363924583,1748929841092,-491.73,0.00017524,3]
[363924584,1748929841101,-1083.5,0.00017533,2]
[363924585,1748929841111,-152.554458,0.00017534,2]
[363924586,1748929841120,-151.0,0.00017534,2]
[363924587,1748929841129,-151.0,0.00017534,2]
[363924588,1748929841139,-151.0,0.00017534,2]
[363924589,1748929841149,-151.0,0.00017534,2]
[363924590,1748929841161,-401.324536,0.00017534,2]
[363924591,1748929841170,-401.324536,0.00017534,2]
[363924592,1748929841180,-379.816853,0.00017534,2]
[363924593,1748929841190,-379.816853,0.00017534,2]
[363924594,1748929841199,-440.0,0.00017534,2]
[363924595,1748929841209,-440.0,0.00017534,2]
[363924596,1748929841218,-440.0,0.00017534,2]
[363924597,1748929841228,-440.0,0.00017534,2]
[363924598,1748929841238,-440.0,0.00017534,2]
[363924599,1748929841247,-440.0,0.00017534,2]
[363924600,1748929841257,-1693.52,0.00017534,2]
[363924602,1748929841266,-913.23,0.00017534,2]
[363924603,1748929841275,-440.0,0.00017534,2]
[363924604,1748929841285,-564.19,0.00017534,2]
[363924605,1748929841294,-440.0,0.00017534,2]
[363924606,1748929841303,-440.0,0.00017534,2]
[363924607,1748929841313,-440.0,0.00017534,2]
[363924608,1748929841323,-440.0,0.00017534,2]
[363924609,1748929841333,-2083.82,0.00017534,2]
[363924610,1748929841343,-2014.14,0.00017534,2]
[363924611,1748929841352,-1581.67,0.00017534,2]
[363924612,1748929841362,-440.0,0.00017534,2]
[363924613,1748929841372,-2327.35,0.00017534,2]
[363924614,1748929841381,-472.07,0.00017534,2]
[363924615,1748929841391,-457.75,0.00017534,2]
[363924616,1748929841401,-993.97,0.00017534,2]
[363924617,1748929841411,-440.0,0.00017534,2]
[363924618,1748929841421,-890.91,0.00017534,2]
[363924619,1748929841430,-440.0,0.00017534,2]
[363924620,1748929841440,-440.0,0.00017534,2]
[363924621,1748929841450,-203.73327283,0.00017534,2]
[363924622,1748929841460,-975.27,0.00017534,2]
[363924623,1748929841470,-440.0,0.00017534,2]
[363924624,1748929841479,-769.56,0.00017534,2]
[363924625,1748929841489,-753.04,0.00017534,2]
[363924626,1748929841499,-667.86,0.00017534,2]
[363924627,1748929841508,-440.0,0.00017534,2]
[363924628,1748929841518,-440.0,0.00017534,2]
[363924629,1748929841528,-440.0,0.00017534,2]
[363924630,1748929841538,-500.0,0.00017559,2]
[363924631,1748929841547,-500.0,0.00017559,2]
[363924632,1748929841557,-364.95672582,0.00017559,2]
[363924633,1748929841567,-2393.8380497,0.00017624,2]
[363924634,1748929841577,-500.0,0.0001765,2]
[363924635,1748929841586,-500.0,0.0001765,2]
[363924636,1748929841596,-510.89426034,0.00017695,2]
[363924637,1748929841605,-502.91607213,0.00017695,2]
[363924638,1748929841615,-500.0,0.00017695,2]
[363924639,1748929841624,-500.0,0.00017695,2]
[363924640,1748929841634,-1713.34831967,0.00017708,2]
[363924641,1748929841643,-1000.0,0.000178,2]
[363924642,1748929841653,-151.0,0.00017808,2]
[363924643,1748929841662,-151.0,0.00017808,2]
[363924644,1748929841672,-151.0,0.00017808,2]
[363924645,1748929841681,-401.324536,0.00017808,2]
[363924646,1748929841691,-401.324536,0.00017808,2]
[363924647,1748929841701,-440.0,0.00017808,2]
[363924648,1748929841710,-440.0,0.00017808,2]
[363924649,1748929841720,-440.0,0.00017808,2]
[363924650,1748929841730,-440.0,0.00017808,2]
[363924651,1748929841739,-440.0,0.00017808,2]
[363924660,1748929841867,-440.0,0.00017808,2]
[363924661,1748929841880,-1693.52,0.00017808,2]
[363924662,1748929841890,-913.23,0.00017808,2]
[363924663,1748929841901,-440.0,0.00017808,2]
[363924664,1748929841912,-564.19,0.00017808,2]
[363924665,1748929841922,-440.0,0.00017808,2]
[363924666,1748929841932,-440.0,0.00017808,2]
[363924667,1748929841941,-440.0,0.00017808,2]
[363924668,1748929841952,-440.0,0.00017808,2]
[363924669,1748929841961,-2083.82,0.00017808,2]
[363924670,1748929841971,-2014.14,0.00017808,2]
[363924671,1748929841982,-1581.67,0.00017808,2]
[363924672,1748929841995,-440.0,0.00017808,2]
[363924673,1748929842004,-2327.35,0.00017808,2]
[363924674,1748929842014,-472.07,0.00017808,2]
[363924675,1748929842024,-457.75,0.00017808,2]
[363924676,1748929842034,-993.97,0.00017808,2]
[363924677,1748929842043,-440.0,0.00017808,2]
[363924678,1748929842053,-890.91,0.00017808,2]
[363924679,1748929842064,-440.0,0.00017808,2]
[363924680,1748929842074,-440.0,0.00017808,2]
[363924681,1748929842084,-975.27,0.00017808,2]
[363924682,1748929842094,-440.0,0.00017808,2]
[363924683,1748929842103,-769.56,0.00017808,2]
[363924684,1748929842113,-753.04,0.00017808,2]
[363924685,1748929842123,-667.86,0.00017808,2]
[363924686,1748929842132,-440.0,0.00017808,2]
[363924687,1748929842142,-440.0,0.00017808,2]
[363924688,1748929842152,-440.0,0.00017808,2]
[363924689,1748929842162,-1004.90978063,0.0001786,2]
[363924690,1748929842172,-2393.8380497,0.00017866,2]
[363924691,1748929842182,-1083.5,0.00017899,2]
[363924692,1748929842191,-420.0,0.00017962,2]
[363924693,1748929842201,-420.0,0.00017963,2]
[363924694,1748929842210,-788.63107863,0.00017964,2]
[363924695,1748929842220,-1000.0,0.00017964,2]
[363924696,1748929842229,-1008.35087263,0.00017964,2]
[363924697,1748929842239,-208.6,0.00018,2]
[363924698,1748929842248,-193.77934823,0.00018043,2]
[363924699,1748929842258,-1000.0,0.00018043,2]
[363924700,1748929842267,-920.0,0.00018052,2]
[363924701,1748929842277,-379.816853,0.00018072,2]
[363924702,1748929842287,-379.816853,0.00018072,2]
[363924703,1748929842296,-151.0,0.00018081,2]
[363924704,1748929842306,-1083.5,0.00018081,2]
[363924705,1748929842315,-1000.0,0.00018082,2]
[363924706,1748929842325,-1000.0,0.00018082,2]
[363924707,1748929842334,-1000.0,0.00018082,2]
[363924708,1748929842344,-1000.0,0.00018082,7]
[363924709,1748929842354,-1000.0,0.00018082,7]
[363924710,1748929842363,-1000.0,0.00018082,7]
[363924711,1748929842373,-1000.0,0.00018082,7]
[363924712,1748929842383,-151.0,0.00018082,2]
[363924713,1748929842393,-151.0,0.00018082,2]
[363924714,1748929842403,-151.0,0.00018082,2]
[363924715,1748929842414,-401.324536,0.00018082,2]
[363924716,1748929842424,-401.324536,0.00018082,2]
[363924717,1748929842434,-440.0,0.00018082,2]
[363924718,1748929842444,-440.0,0.00018082,2]
[363924719,1748929842454,-440.0,0.00018082,2]
[363924720,1748929842463,-440.0,0.00018082,2]
[363924721,1748929842473,-440.0,0.00018082,2]
[363924722,1748929842482,-440.0,0.00018082,2]
[363924723,1748929842492,-1693.52,0.00018082,2]
[363924724,1748929842502,-913.23,0.00018082,2]
[363924725,1748929842511,-440.0,0.00018082,2]
[363924726,1748929842521,-564.19,0.00018082,2]
[363924727,1748929842531,-440.0,0.00018082,2]